Cogmind - Beta 13 X2 *** ADVENTURER MODE // 2024.02.10 @ 17:15:48 Player: Sardaukar Result: Destroyed by G-34 Mercenary with Small Laser Performance ------------- Evolutions (1) 500 Regions Visited (2) 400 Robots Destroyed (49) 245 Value Destroyed (1274) 1274 Prototype IDs (7) 140 Alien Tech Used (0) 0 Bonus (35) 35 TOTAL SCORE: 2594 Bonus ------- High Alert Combat Kills 35 Cogmind --------- Core Integrity 0/400 Matter 300/300 Energy 100/100 System Corruption 3% Temperature Cool (6) Movement Core (700) Ox13 Location -9/Materials Parts ------- > --- POWER (1) -------- (None) > --- PROPULSION (4) --- (None) > --- UTILITY (2) ------ High-capacity Storage Unit > --- WEAPON (2) ------- (None) > --- INVENTORY (20) --- Improved Ion Engine Cooling System Sensor Array Signal Interpreter Signal Interpreter Peak State ------------ > --- POWER ------------ Improved Ion Engine > --- PROPULSION ------- Improved Aluminum Leg Improved Aluminum Leg Improved Aluminum Leg Improved Aluminum Leg > --- UTILITY ---------- High-capacity Storage Unit Light Armor Plating > --- WEAPON ----------- Light Assault Rifle Light Assault Rifle > --- INVENTORY -------- Improved Ion Engine Aluminum Leg Cooling System Sensor Array Signal Interpreter Signal Interpreter Light Assault Rifle Grenade Launcher [Rating: 15] Favorites ----------- Power Improved Ion Engine Engine Improved Ion Engine Propulsion Light Treads Treads Light Treads Leg Improved Aluminum Leg Utility High-capacity Storage Unit Device Heat Sink Storage High-capacity Storage Unit Protection Light Armor Plating Weapon Light Assault Rifle Energy Gun Beam Rifle Ballistic Gun Light Assault Rifle Launcher Grenade Launcher Build | -11 -10 -9 ------- Run | Yrd Mat Mat Slots Evolved 2 | . . 2 Power . | . . . Propulsion 2 | . . 2 Utility . | . . . Weapon . | . . . Parts Attached 31 | 6 9 16 Power 4 | 1 2 1 Engine 4 | 1 2 1 Core . | . . . Reactor . | . . . Propulsion 9 | 2 1 6 Treads 3 | 2 1 . Leg 6 | . . 6 Wheel . | . . . Hover . | . . . Flight . | . . . Utility 7 | 1 4 2 Device 2 | . 2 . Storage 3 | 1 2 . Processor . | . . . Hackware . | . . . Protection 2 | . . 2 Artifact . | . . . Weapon 11 | 2 2 7 Energy Gun 1 | . . 1 Energy Cannon . | . . . Ballistic Gun 7 | 2 1 4 Ballistic Cannon . | . . . Launcher 3 | . 1 2 Special Weapon . | . . . Impact Weapon . | . . . Slashing Weapon . | . . . Piercing Weapon . | . . . Special Melee Weapon . | . . . Unidentified Prototypes . | . . . Parts Lost 16 | . 1 15 Power 2 | . . 2 Propulsion 7 | . 1 6 Utility 2 | . . 2 Weapon 5 | . . 5 Highest Loss Streak 4 | . 1 4 To Critical Strikes . | . . . Average Slot Usage (%) 82 | . 85 77 Engine 12 | . 14 10 Treads 12 | . 19 . Leg 10 | . . 30 Device 6 | . 8 1 Storage 12 | . 14 11 Protection 2 | . . 6 Ballistic Gun 21 | . 26 13 Launcher 1 | . 1 . Naked Turns . | . . . Heaviest Build 55 | 12 52 55 Greatest Support 52 | 40 40 52 Greatest Overweight (x) 15 | . 2 15 Average Overweight (x) . | . 1 . Largest Inventory Capacity 20 | 8 20 20 Average Capacity 18 | 6 18 20 Most Carried 9 | 2 9 9 Average Carried 4 | 1 4 6 Final Capacity 20 | 8 20 20 Final Carried 9 | 2 9 5 Class Distribution -------------------- 100% | Mutant Dominant Class ---------------- Mutant | -10/Materials Mutant | -9/Materials Resources | -11 -10 -9 ----------- Run | Yrd Mat Mat Matter Collected 800 | 220 192 388 Remotely . | . . . Salvage Created 1615 | . 636 979 Parts 106 | . 39 67 Haulers Intercepted 3 | . 2 1 Recyclers Shooed 4 | . 1 3 Parts Field Recycled . | . . . Retrieved Matter . | . . . Parts Self-Destructed . | . . . Prevented . | . . . Kills | -11 -10 -9 ------- Run | Yrd Mat Mat Combat Hostiles Destroyed 38 | . 14 24 Guns 27 | . 11 16 AOE 11 | . 3 8 Classes Destroyed 7 | . 4 3 Builder 1 | . . 1 Hauler 3 | . 2 1 Recycler 2 | . . 2 Watcher 5 | . 2 3 Swarmer 10 | . 3 7 Grunt 24 | . 11 13 Sentry 4 | . . 4 Best Kill Streak 14 | . 5 14 Combat Bots Only 12 | . 5 12 Max Kills in Single Turn 3 | . 2 3 Gunslinging . | . . . Exploded 3 | . 2 3 Melee . | . . . Uniques/NPCs Destroyed . | . . . Combat | -11 -10 -9 -------- Run | Yrd Mat Mat Hostile Shots Fired 305 | . 62 243 Missed 92 | . 21 71 Damage Taken 2110 | . 429 1681 Core 464 | . 64 400 Absorbed by Shields . | . . . Ignored by Resistances 648 | . 131 517 Core Remaining (%) 87 | 100 74 . Volleys Fired 139 | 1 53 85 Largest 2 | 2 2 2 Hottest 76 | 40 40 76 Shots Fired 255 | 2 104 149 Gun 244 | 2 102 140 Cannon . | . . . Launcher 11 | . 2 9 Special . | . . . Kinetic 214 | 2 102 110 Thermal 30 | . . 30 Explosive 11 | . 2 9 Electromagnetic . | . . . Robot Hit Streak 41 | . 19 41 Robot Miss Streak 2 | . 2 2 Penetration Max . | . . . Secondary Targets 4 | . 2 2 Max Gunslinging Chain 1 | . 1 1 Shots Hit Robots 214 | . 88 126 Core Hits 109 | . 38 71 Critical Kills . | . . . Critical Parts Destroyed 2 | . 1 1 Critical Strikes 2 | . 1 1 Destroy 2 | . 1 1 Melee Attacks . | . . . Impact . | . . . Slashing . | . . . Piercing . | . . . Sneak Attacks . | . . . Combat Hostiles . | . . . Follow-up Attacks . | . . . Damage Inflicted 2623 | . 836 1787 Guns 1842 | . 691 1151 Cannons . | . . . Explosions 753 | . 143 610 Melee . | . . . Ramming 28 | . 2 26 Kinetic 1435 | . 691 744 Thermal 407 | . . 407 Explosive 753 | . 143 610 Electromagnetic . | . . . Impact . | . . . Slashing . | . . . Piercing . | . . . Highest Corruption 3 | . . 3 Average Corruption 1 | . . 1 Corruption Purged . | . . . Corruption Blocked . | . . . Effects 10 | . . 10 Message Errors 3 | . . 3 Matter Fused 3 | . . 3 Heat Flow Errors 3 | . . 3 Data Loss (minor) 1 | . . 1 Overload Shots . | . . . Overflow Damage 23 | . . 23 Projectiles . | . . . Explosions 23 | . . 23 Melee . | . . . Knockbacks . | . . . Impact . | . . . Kinetic . | . . . Secondary . | . . . Self-Inflicted Damage 163 | . 41 122 Shots 8 | . 2 6 Rammed 14 | . 2 12 Targets Rammed 25 | . 2 23 Kicked 11 | . . 11 Crushed . | . . . Highest Temperature 589 | . 12 589 Average Temperature 114 | . 3 118 Received Heat Transfer 1311 | . 255 1056 Effects 4 | . . 4 Interference 1 | . . 1 Short Circuit 2 | . . 2 Damage (major) 1 | . . 1 Siege Activations . | . . . Robots Corrupted . | . . . Combat Hostiles . | . . . Parts Fried . | . . . Impact Corruptions . | . . . Robots Melted . | . . . Combat Hostiles . | . . . Parts Melted 1 | . . 1 Heat Transferred 1036 | . . 1036 Parts Sabotaged . | . . . Parts Stolen . | . . . Parts Stripped . | . . . Power Chain Reactions . | . . . Missiles Intercepted . | . . . Alert | -11 -10 -9 ------- Run | Yrd Mat Mat Peak Influence 448 | . 223 448 Initial . | . . . Average 120 | . 55 254 Maximum Alert Level 2 | . 1 2 Low Security (%) 75 | 100 97 32 Level 1 14 | . 2 39 Level 2 9 | . . 28 Level 3 . | . . . Level 4 . | . . . Level 5 . | . . . High Security . | . . . Max Security . | . . . Squads Dispatched 6 | . 4 2 Investigation 5 | . 4 1 Extermination . | . . . Reinforcement 1 | . . 1 Assault . | . . . Garrison . | . . . Intercept . | . . . Searches Triggered . | . . . Construction Impeded . | . . . Haulers Reinforced . | . . . Active Scanning Responses . | . . . Cargo Convoy Interrupts . | . . . Stealth | -11 -10 -9 --------- Run | Yrd Mat Mat Distress Signals 6 | . 1 5 Communications Jammed . | . . . Distress Signals . | . . . Times Spotted 55 | . 21 34 Peak Tracking Total 6 | . 5 6 Tactical Retreats . | . . . Traps | -11 -10 -9 ------- Run | Yrd Mat Mat Traps Triggered 3 | . 3 . Indirectly . | . . . Trap Hack Attempts . | . . . Triggered . | . . . Disarmed . | . . . Reprogrammed . | . . . Reused . | . . . Traps Extracted . | . . . Installed . | . . . Triggered . | . . . Machines | -11 -10 -9 ---------- Run | Yrd Mat Mat Machines Disabled 2 | . . 2 Max in Single Turn 1 | . . 1 Machines Repaired . | . . . Machines Dismantled . | . . . Machines Sabotaged . | . . . Overloaded Fab Kills . | . . . Hacking | -11 -10 -9 --------- Run | Yrd Mat Mat Machines Accessed 14 | . 9 5 Terminals 13 | . 8 5 Fabricators . | . . . Repair Stations . | . . . Recycling Units 1 | . 1 . Scanalyzers . | . . . Garrison Access . | . . . Total Hacks 34 | . 22 12 Successful 17 | . 10 7 Failed 17 | . 12 5 Catastrophic 1 | . 1 . Database Lockouts . | . . . Manual 9 | . 5 4 Terminals 33 | . 21 12 Fabricators . | . . . Repair Stations . | . . . Recycling Units 1 | . 1 . Scanalyzers . | . . . Garrison Access . | . . . Terminal Hacks 16 | . 9 7 Prototype ID Bank 4 | . 3 1 Branch Access Points 2 | . 1 1 Terminal Index 2 | . 1 1 Alert Level 1 | . 1 . Unreport Threat 2 | . 2 . Dispatch Records 1 | . . 1 Investigation Status 1 | . . 1 Reinforcement Status 1 | . 1 . Registered Components 1 | . . 1 Zone Layout 1 | . . 1 Fabricator Hacks . | . . . Repair Station Hacks . | . . . Recycling Unit Hacks . | . . . Scanalyzer . | . . . Garrison Access Hacks . | . . . Unauthorized Hacks 1 | . 1 . Terminals . | . . . Fabricators . | . . . Repair Stations . | . . . Recycling Units 1 | . 1 . Tunnel 1 | . 1 . Scanalyzers . | . . . Garrison Access . | . . . Data Cores Recovered . | . . . Used . | . . . Hacking Detections 11 | . 7 4 Full Trace Events 3 | . 2 1 Feedback Events 1 | . . 1 Corruption 1 | . . 1 Feedback Blocked . | . . . Robot Schematics Acquired . | . . . Robots Built . | . . . Authchips . | . . . Time . | . . . Total Robot Build Rating . | . . . Part Schematics Acquired . | . . . Parts Built . | . . . Authchips . | . . . Time . | . . . Total Part Build Rating . | . . . Parts Repaired . | . . . Time . | . . . Parts Recycled . | . . . Recycled Matter . | . . . Retrieved Matter . | . . . Retrieved Components . | . . . Parts Scanalyzed . | . . . Part Schematics Acquired . | . . . Parts Damaged . | . . . Bothacking | -11 -10 -9 ------------ Run | Yrd Mat Mat Used RIF Installer . | . . . Robots Hacked . | . . . Non-combat . | . . . Combat . | . . . Robot Hacks Applied . | . . . Relay Couplers Released . | . . . Fabnet Peak Effective % . | . . . Robots Rewired . | . . . Allies Hacked . | . . . Hacks Repelled . | . . . Allies | -11 -10 -9 -------- Run | Yrd Mat Mat Total Allies . | . . . Largest Group . | . . . Highest-Rated Group . | . . . Highest-Rated Ally . | . . . Total Orders . | . . . Ally Attacks . | . . . Total Damage . | . . . Kills . | . . . Allies Corrupted . | . . . Allies Melted . | . . . Intel | -11 -10 -9 ------- Run | Yrd Mat Mat Robot Analysis Total . | . . . Derelict Logs Recovered . | . . . Drone Launches . | . . . Drone Recoveries . | . . . Exploration | -11 -10 -9 ------------- Run | Yrd Mat Mat Turns Passed 2632 | 114 1633 885 Spaces Moved 918 | 57 569 292 Core 3 | 2 . 1 Treads 624 | 55 569 . Legs 291 | . . 291 Wheels . | . . . Hover . | . . . Flight . | . . . Fastest Speed 50 | 50 160 120 Average Speed 221 | 156 257 164 Slowest Speed 800 | 160 320 800 Overloaded Moves . | . . . Propulsion Burnouts . | . . . Robots Hopped . | . . . Cave-ins Triggered . | . . . Exploration Rate (%) 42 | 5 91 31 Regions Visited 2 Branch Regions . Pre-discovered Areas 1 | . 1 . Known Exits Taken . | . . . Unknown Exits Taken 2 | 1 1 . Scrap Searched . | . . . Spaces Dug . | . . . Terrain Destroyed 62 | . 7 55 Melee . | . . . Projectile . | . . . AOE 62 | . 7 55 Terrain Rammed . | . . . Walls Destroyed . | . . . Machines Disabled . | . . . Actions | -11 -10 -9 --------- Run | Yrd Mat Mat Total 1178 | 78 648 452 Wait 44 | 13 1 30 Move 916 | 56 568 292 Hop . | . . . Pick Up 14 | 2 9 3 Fast Attach 19 | 6 8 5 Attach 6 | . . 6 Detach . | . . . Swap 6 | . 1 5 Drop 9 | . 6 3 Fire 139 | 1 53 85 Melee . | . . . Ram 12 | . . 12 Kick 11 | . . 11 Crush 2 | . 2 . Escape Stasis . | . . . Rewire . | . . . Trap . | . . . Miscellaneous . | . . . Route ------- -11/Scrapyard -10/Materials (discovered 5 exits: *Mat x3 / *Min x2) -9/Materials (discovered 2 exits: *Min / Sto) History --------- Turn | Location | Event 2 | -11/Scrapyard | Met Revision 17 7 | -11/Scrapyard | Discovered new exit (range 15) 115 | -11/Scrapyard | Entered Materials 302 | -10/Materials | Build established: Mutant 328 | -10/Materials | Discovered new exit (range 5) 424 | -10/Materials | Discovered new exit (range 16) 849 | -10/Materials | Identified exit to Mines 1342 | -10/Materials | Discovered new exit (range 8) 1748 | -10/Materials | Entered another Materials area 1748 | -9/Materials | Evolved 2 slots: Propulsion x2 1950 | -9/Materials | Identified exit to Mines 1950 | -9/Materials | Identified exit to Storage 2258 | -9/Materials | Destroyed 12 combat bots 2320 | -9/Materials | Lost 4 parts (1p3n) 2516 | -9/Materials | Core integrity fell below 50% 2522 | -9/Materials | Lost 4 parts (2n1u1w) 2582 | -9/Materials | Core integrity fell below 20% 2633 | -9/Materials | Destroyed by G-34 Mercenary with Small Laser Last Messages --------------- 02507_ Slammed into G-34 Mercenary. 02508_ R-06 Scavenger collects Lgt. Ion Engine. 02512_ R-06 Scavenger collects Heat Sink. 02523_ Acquired Aluminum Leg. 02533_ Kicked G-34 Mercenary. 02536_ System corrupted: Heat flow error (+224). 02537_ Kicked G-34 Mercenary. 02545_ Kicked G-34 Mercenary out of the way. 02549_ Kicked G-34 Mercenary. 02557_ Kicked G-34 Mercenary out of the way. 02561_ Aluminum Leg destroyed. 02561_ Slammed into G-34 Mercenary. 02564_ R-06 Scavenger collects Lgt. Ion Engine. 02569_ Slammed into G-34 Mercenary. 02593_ Hvy. Ion Engine broken. 02593_ Destabilizing: Short circuit. 02601_ Slammed into G-34 Mercenary. 02619_ System corrupted: Component data lost. 02625_ Slammed into G-34 Mercenary. 02631_ Broken Hvy. Ion Engine destroyed. Map ----- +----------------------------------------------------+ | ????????????????????########+### ############# | | ???????????????????? " | | ???????????????????? "T | | ???????????????????? % | | ?????????????????????????####### ###+######### | | ?????????????????????????????#####+#####???????# | | ?????????????????????????????# #???????# | | ?????????????????????????????# "" """ #???????# | | ?????????????????????????????# "T """ #???????# | | ?????????????????????????????# "" """ #???????### | | ?????????????????????????????# #?????????? | | ?????????????????????????????# #?????????? | | ?????????????????????????????# #?????????? | | ?????????????????????????????# = #?????????? | | ?????????????????????????????#######+# ## ##?????? | | ?????????????????????### ##### ####??? | | ???????????????????+ % +? | | ???????????????????##?######## ######? | | ???????????????????# ## # ## #####?????? | | ???????????????????# """"" ## %### ##########??? | | ???????????????????#! """"" # ##### #### | | ???????????????????# """"" # % | | ???????????????????#! "" " +%%%% > | | ???????????????????# "" %#% % % % | | ???????????????????# """ %%# %%##### "##?? | | ???????????????????#= """@ %## %%###### !"| "#??? | | ???????????????????# g % ## # #"" """"#??? | | ???????????????????########### +! ### #####??? | | ?????????????????????######### % # #??##??????? | | ?????????????????????# #!% # #??????????? | | ?????????????????????# """ # # #??????????? | | ?????????????????????# """ # %# #??????????? | | ?????????????????????# """ / %%# #??????????? | | ?????????????????????# #% %######??????????? | | ?????????????????????######### ##??????????????? | | ??????????????????# ##### #??????????????? | | ??????????????????# #??????????????? | | ??????????????????# ???????? | | ??????????????????# #??????? | | ??????????????????# ##### #??????? | | ??????????????????#####?????########### #??????? | | ???????????????????????????????????????? #??????? | | ??????????????????????????????????????????#??????? | | ?????????????????????????????????????????????????? | | ?????????????????????????????????????????????????? | | ?????????????????????????????????????????????????? | | ?????????????????????????????????????????????????? | | ?????????????????????????????????????????????????? | | ?????????????????????????????????????????????????? | | ?????????????????????????????????????????????????? | +----------------------------------------------------+ Best States ------------- Heat Dissipation 35 Energy Generation 14 Energy Capacity 280 Matter Stores 300 Matter Capacity 300 Sight Range 16 Robot Scan Range 14 Terrain Scan Density 10 Armor Coverage 150 Resistance: KI 20 Resistance: TH 20 Resistance: EX 20 Resistance: EM 20 Resistance: I 20 Resistance: S 20 Resistance: P 20 Evasion (%) 55 Recoil Reduction 2 Offensive Hacking 10 Item Schematics ----------------- None Robot Schematics ------------------ None Fabricated ------------ Nothing Alien Tech Used ----------------- None Achievements -------------- None Challenges ------------ None Game ------ Seed DeepOpticalDatajack Manual? 0 Play Time 00:20:22 Cumulative 331.8 hours Start 2024.02.10 @ 16:54:04 End 2024.02.10 @ 17:15:48 Sessions 1 Manual Loads 0 Difficulty Adventurer Special Mode None Game No. 107 Rogue 7 Adventurer 77 Explorer 23 Win Type - Total 10 Types 8/1/1/0/0/0/0/0/0 Lore% 68 Gallery% 76 Achievement% 67 Wizard Run 0 Options --------- ASCII 0 Keyboard 0 Movement Mouse Keybinds 0 Fullscreen 2 Font 36/TerminusFine Map View 76x50 Zoom Use 4% Tactical HUD 1 Map Filters NONE Filters NONE Steam 1 RUN: 58d18b53-6e54-498e-84a2-75df07f7c273